bitfinex/quotes_BTCUSD_20251230
["timestamp","ask_amount","ask_price","bid_price","bid_amount"]
[1767093806491,0.01064745,87950.0,87941.0,0.0114]
[1767093806853,0.01136983,87952.0,87941.0,0.0114]
[1767093806854,0.01136996,87951.0,87941.0,0.0114]
[1767093807056,0.01065193,87950.0,87941.0,0.0114]
[1767093807259,0.01065486,87949.0,87941.0,0.0114]
[1767093807436,0.01136983,87952.0,87941.0,0.0114]
[1767093807644,0.01065512,87951.0,87941.0,0.0114]
[1767093807840,0.01065512,87950.0,87941.0,0.0114]
[1767093808080,0.01065512,87949.0,87941.0,0.0114]
[1767093808242,0.0106593,87948.0,87941.0,0.0114]
[1767093808443,0.01136996,87951.0,87941.0,0.0114]
[1767093808643,0.0106595,87950.0,87941.0,0.0114]
[1767093808869,0.01136996,87951.0,87941.0,0.0114]
[1767093808870,0.0106595,87949.0,87941.0,0.0114]
[1767093809064,0.0106595,87948.0,87941.0,0.0114]
[1767093809270,0.01137009,87950.0,87941.0,0.0114]
[1767093809464,0.01066177,87949.0,87941.0,0.0114]
[1767093809673,0.01066177,87948.0,87941.0,0.0114]
[1767093810001,0.01066177,87947.0,87941.0,0.0114]
[1767093810201,0.01137009,87950.0,87941.0,0.0114]
[1767093810385,0.01066177,87949.0,87941.0,0.0114]
[1767093810586,0.01066177,87948.0,87941.0,0.0114]
[1767093810786,0.01066177,87947.0,87941.0,0.0114]
[1767093810981,0.06822097,87950.0,87941.0,0.0114]
[1767093811151,0.02203216,87949.0,87941.0,0.0114]
[1767093811351,0.01066194,87948.0,87941.0,0.0114]
[1767093811607,0.01136996,87951.0,87941.0,0.0114]
[1767093811608,0.01066194,87947.0,87941.0,0.0114]
[1767093811767,0.01136996,87951.0,87941.0,0.0114]
[1767093812116,0.02203228,87950.0,87941.0,0.0114]
[1767093812256,0.01066219,87949.0,87941.0,0.0114]
[1767093812452,0.01066219,87948.0,87941.0,0.0114]
[1767093812668,0.0001072,87956.0,87943.0,0.14153]
[1767093812900,0.0001072,87956.0,87948.0,0.000549]
[1767093813295,0.0001072,87956.0,87943.0,0.14153]
[1767093813296,0.0001072,87956.0,87944.0,0.06822494]
[1767093813479,0.0001072,87956.0,87946.0,0.01137061]
[1767093813696,0.0001072,87956.0,87945.0,0.01137074]
[1767093814022,0.0001072,87956.0,87944.0,0.01137087]
[1767093814322,0.0001072,87956.0,87945.0,0.01137074]
[1767093815088,0.0001072,87956.0,87946.0,0.01137061]
[1767093815857,0.0001072,87956.0,87945.0,0.01137074]
[1767093816478,0.0001072,87956.0,87946.0,0.01137061]
[1767093817096,0.0001072,87956.0,87947.0,0.01137048]
[1767093817705,0.0001072,87956.0,87946.0,0.01137061]
[1767093817928,0.0001072,87956.0,87945.0,0.01137074]
[1767093818275,0.0001072,87956.0,87946.0,0.01137061]
[1767093819481,0.0001072,87956.0,87947.0,0.01137048]
[1767093820495,0.0001072,87956.0,87946.0,0.01137061]
[1767093820700,0.0001072,87956.0,87944.0,0.06822479]
[1767093821039,0.0001072,87956.0,87945.0,0.01137074]
[1767093821605,0.0001072,87956.0,87946.0,0.01137061]
[1767093822778,0.0001072,87956.0,87945.0,0.01137074]
[1767093823013,0.0001072,87956.0,87944.0,0.01137087]
[1767093823391,0.0001072,87956.0,87945.0,0.01137074]
[1767093823702,0.0001072,87956.0,87944.0,0.01137087]
[1767093824246,0.0001072,87956.0,87945.0,0.01137074]
[1767093824608,0.0001072,87956.0,87946.0,0.01137061]
[1767093824831,0.010661,87955.0,87947.0,0.01137048]
[1767093825041,0.010661,87954.0,87946.0,0.01137061]
[1767093825226,0.0001072,87956.0,87946.0,0.01137061]
[1767093825446,0.010661,87955.0,87947.0,0.01137048]
[1767093825642,0.010661,87954.0,87947.0,0.01137048]
[1767093825940,0.0001072,87956.0,87947.0,0.01137048]
[1767093826244,0.01066086,87955.0,87947.0,0.01137048]
[1767093826396,0.01066086,87954.0,87947.0,0.01137048]
[1767093826597,0.0001072,87956.0,87947.0,0.01137048]
[1767093826796,0.01066077,87955.0,87947.0,0.01137048]
[1767093827047,0.01066077,87954.0,87947.0,0.01137048]
[1767093827345,0.0001072,87956.0,87947.0,0.01137048]
[1767093827555,0.01066074,87955.0,87947.0,0.01137048]
[1767093827748,0.01066074,87954.0,87946.0,0.01137061]
[1767093827948,0.0001072,87956.0,87944.0,0.01137087]
[1767093828107,0.01066074,87955.0,87943.0,0.152901]
[1767093828292,0.01066074,87954.0,87943.0,0.14153]
[1767093828495,0.01136945,87955.0,87943.0,0.14153]
[1767093828698,0.01066076,87954.0,87943.0,0.14153]
[1767093828937,0.01136945,87955.0,87943.0,0.14153]
[1767093829151,0.01066076,87954.0,87943.0,0.14153]
[1767093829328,0.01136957,87954.0,87943.0,0.14153]
[1767093829527,0.01136945,87955.0,87943.0,0.14153]
[1767093829714,0.01066082,87954.0,87943.0,0.152901]
[1767093829915,0.01136945,87955.0,87943.0,0.14153]
[1767093830101,0.01066082,87954.0,87943.0,0.14153]
[1767093830302,0.01136945,87955.0,87943.0,0.14153]
[1767093830514,0.01066094,87954.0,87943.0,0.14153]
[1767093830753,0.01136945,87955.0,87943.0,0.152901]
[1767093830957,0.01066094,87954.0,87943.0,0.14153]
[1767093831135,0.01136945,87955.0,87943.0,0.152901]
[1767093831297,0.01066094,87954.0,87943.0,0.152901]
[1767093831498,0.01136945,87955.0,87943.0,0.152901]
[1767093831765,0.01066111,87954.0,87943.0,0.152901]
[1767093831916,0.01136945,87955.0,87943.0,0.152901]
[1767093832111,0.01066111,87954.0,87943.0,0.14153]
[1767093832321,0.01136945,87955.0,87943.0,0.14153]
[1767093832322,0.01136945,87955.0,87943.0,0.152901]
[1767093832518,0.01066134,87954.0,87943.0,0.152901]
[1767093832807,0.01136957,87954.0,87943.0,0.14153]
[1767093833840,0.01147652,87956.0,87943.0,0.14153]
[1767093834027,0.01136957,87954.0,87943.0,0.14153]
[1767093834226,0.01136945,87955.0,87943.0,0.14153]
[1767093834431,0.01066162,87954.0,87943.0,0.14153]
[1767093834764,0.01136957,87954.0,87943.0,0.14153]
[1767093835131,0.01136945,87955.0,87943.0,0.14153]
[1767093835330,0.01066196,87954.0,87943.0,0.14153]
[1767093835553,0.01066196,87953.0,87943.0,0.14153]
[1767093836325,0.01136945,87955.0,87943.0,0.14153]
[1767093836526,0.01066287,87954.0,87943.0,0.14153]
[1767093836907,0.01066287,87953.0,87943.0,0.14153]
[1767093837019,0.01136957,87954.0,87943.0,0.14153]
[1767093837222,0.01066287,87953.0,87943.0,0.152901]
[1767093837423,0.01136945,87955.0,87943.0,0.152901]
[1767093837626,0.01066347,87954.0,87943.0,0.152901]
[1767093837826,0.01066347,87953.0,87943.0,0.14153]
[1767093838028,0.01136957,87954.0,87943.0,0.14153]
[1767093838261,0.01066347,87953.0,87943.0,0.14153]
[1767093838467,0.01136945,87955.0,87943.0,0.14153]
[1767093838664,0.01066419,87954.0,87943.0,0.14153]
[1767093838892,0.01147652,87956.0,87943.0,0.14153]
[1767093838893,0.01066419,87953.0,87943.0,0.14153]
[1767093839050,0.01147652,87956.0,87943.0,0.14153]
[1767093839250,0.01066419,87955.0,87944.0,0.01137087]
[1767093839488,0.01066419,87954.0,87944.0,0.01137087]
[1767093839689,0.01066419,87953.0,87944.0,0.01137087]
[1767093839871,0.01147652,87956.0,87943.0,0.152901]
[1767093840042,0.02203453,87955.0,87943.0,0.152901]
[1767093840241,0.01066508,87954.0,87944.0,0.01137087]
[1767093840442,0.01066508,87953.0,87943.0,0.152901]
[1767093840644,0.01066508,87952.0,87943.0,0.14153]
[1767093840870,0.01147652,87956.0,87943.0,0.14153]
[1767093841061,0.01066606,87955.0,87943.0,0.14153]
[1767093841273,0.02203563,87954.0,87943.0,0.14153]
[1767093841466,0.01066606,87953.0,87943.0,0.14153]
[1767093841802,0.01136983,87952.0,87943.0,0.14153]
[1767093841978,0.01066606,87951.0,87943.0,0.14153]
[1767093842146,0.06832316,87956.0,87943.0,0.152901]
[1767093842343,0.02203713,87955.0,87943.0,0.14153]
[1767093842548,0.02203725,87954.0,87943.0,0.14153]
[1767093842747,0.01136983,87952.0,87943.0,0.14153]
[1767093842967,0.01066768,87951.0,87943.0,0.14153]
[1767093843232,0.02203764,87951.0,87943.0,0.14153]
[1767093843375,0.01066768,87950.0,87943.0,0.14153]
[1767093843994,0.01136983,87952.0,87943.0,0.14153]
[1767093843995,0.01066768,87949.0,87943.0,0.14153]
[1767093844204,0.01136983,87952.0,87943.0,0.14153]
[1767093844526,0.02204089,87951.0,87943.0,0.14153]
[1767093844723,0.01067093,87950.0,87943.0,0.14153]
[1767093844930,0.01067093,87949.0,87943.0,0.14153]
[1767093845128,0.01136983,87952.0,87943.0,0.14153]
[1767093845424,0.01067091,87951.0,87943.0,0.14153]
[1767093845625,0.01067091,87950.0,87943.0,0.14153]
[1767093845788,0.01067091,87949.0,87943.0,0.14153]
[1767093845994,0.01136983,87952.0,87943.0,0.14153]
[1767093846255,0.02204039,87951.0,87943.0,0.14153]
[1767093846424,0.01067043,87950.0,87943.0,0.14153]
[1767093846600,0.01067043,87949.0,87943.0,0.14153]
[1767093846948,0.01136996,87951.0,87943.0,0.14153]
[1767093847138,0.01067006,87950.0,87943.0,0.14153]
[1767093847337,0.01067006,87949.0,87943.0,0.14153]
[1767093847641,0.01136983,87952.0,87943.0,0.14153]
[1767093847936,0.01066976,87951.0,87943.0,0.14153]
[1767093848140,0.01066976,87950.0,87943.0,0.14153]
[1767093848345,0.01066976,87949.0,87943.0,0.14153]
[1767093848557,0.0113697,87953.0,87943.0,0.14153]
[1767093848684,0.0220391,87952.0,87943.0,0.14153]
[1767093848890,0.01066927,87951.0,87943.0,0.14153]
[1767093849315,0.02203923,87951.0,87943.0,0.14153]
[1767093849514,0.01136996,87951.0,87943.0,0.14153]
[1767093850328,0.01136983,87952.0,87943.0,0.14153]
[1767093850544,0.02203926,87951.0,87943.0,0.14153]
[1767093850756,0.0106693,87950.0,87943.0,0.14153]
[1767093850932,0.01136983,87952.0,87943.0,0.14153]
[1767093851140,0.01066943,87951.0,87943.0,0.14153]
[1767093851315,0.01066943,87950.0,87943.0,0.14153]
[1767093851518,0.0113697,87953.0,87943.0,0.14153]
[1767093851811,0.01066935,87952.0,87943.0,0.14153]
[1767093852012,0.01066935,87951.0,87943.0,0.14153]
[1767093852279,0.01066935,87950.0,87943.0,0.14153]
[1767093852409,0.01136983,87952.0,87943.0,0.14153]
[1767093852619,0.01066928,87951.0,87943.0,0.14153]
[1767093852918,0.01066928,87950.0,87943.0,0.14153]
[1767093853141,0.01136983,87952.0,87943.0,0.14153]
[1767093853338,0.01066928,87951.0,87943.0,0.14153]
[1767093853664,0.01066928,87950.0,87943.0,0.14153]
[1767093853833,0.0113697,87953.0,87943.0,0.14153]
[1767093854070,0.01066924,87952.0,87943.0,0.14153]
[1767093854270,0.01066924,87951.0,87943.0,0.14153]
[1767093854471,0.01066924,87950.0,87943.0,0.14153]
[1767093854695,0.0113697,87953.0,87943.0,0.14153]
[1767093854907,0.0106692,87952.0,87943.0,0.14153]
[1767093855110,0.0106692,87951.0,87943.0,0.14153]
[1767093855259,0.0106692,87950.0,87943.0,0.14153]
[1767093855460,0.0113697,87953.0,87943.0,0.14153]
[1767093855688,0.01066919,87952.0,87943.0,0.14153]
[1767093855884,0.01136945,87955.0,87943.0,0.14153]
[1767093855885,0.01066919,87951.0,87943.0,0.14153]
[1767093856147,0.01066919,87950.0,87943.0,0.14153]
[1767093856434,0.01136957,87954.0,87943.0,0.14153]
[1767093856629,0.01066918,87953.0,87943.0,0.14153]
[1767093856791,0.01066918,87952.0,87943.0,0.14153]
[1767093856984,0.01066918,87951.0,87943.0,0.14153]
[1767093857185,0.01136945,87955.0,87943.0,0.152901]
[1767093857390,0.01066892,87954.0,87943.0,0.152901]
[1767093857613,0.01066892,87953.0,87944.0,0.01137087]
[1767093857817,0.01066892,87952.0,87943.0,0.152901]
[1767093857983,0.01147652,87956.0,87943.0,0.152901]
[1767093858182,0.02203834,87955.0,87943.0,0.14153]
[1767093858383,0.01066889,87954.0,87943.0,0.14153]
[1767093858605,0.01066889,87953.0,87943.0,0.14153]
[1767093858806,0.01066889,87952.0,87943.0,0.14153]
[1767093859033,0.01136945,87955.0,87943.0,0.14153]
[1767093859236,0.02203847,87954.0,87943.0,0.14153]
[1767093859381,0.0106689,87953.0,87943.0,0.14153]
[1767093859586,0.0106689,87952.0,87943.0,0.14153]
[1767093859786,0.01136945,87955.0,87943.0,0.14153]
[1767093860098,0.01066891,87954.0,87943.0,0.14153]
[1767093860318,0.01066891,87953.0,87943.0,0.14153]
[1767093860496,0.01066891,87952.0,87943.0,0.14153]
[1767093860713,0.01136945,87955.0,87943.0,0.14153]
[1767093860913,0.01066891,87954.0,87943.0,0.152901]
[1767093861118,0.01066891,87953.0,87944.0,0.14596]
[1767093861317,0.01066891,87952.0,87944.0,0.15733087]
[1767093861486,0.0001072,87956.0,87945.0,0.01137074]
[1767093861684,0.0001072,87956.0,87941.0,0.0114]
[1767093861685,0.00010217,87955.0,87952.0,0.01136983]
[1767093861900,0.0001466,87970.0,87958.0,0.10044906]
[1767093862263,0.0001466,87970.0,87960.0,0.65859987]
[1767093862467,0.0001466,87970.0,87962.0,0.01136854]
[1767093862625,0.0001466,87970.0,87961.0,0.14596]
[1767093863040,0.01151411,87970.0,87961.0,0.14596]
[1767093863247,0.0001466,87970.0,87961.0,0.14596]
[1767093863486,0.01151411,87970.0,87961.0,0.14596]
[1767093863881,0.01136764,87969.0,87961.0,0.14596]
[1767093864083,0.01151411,87970.0,87961.0,0.14596]
[1767093864280,0.01151411,87970.0,87958.0,0.0114]
[1767093864281,0.0683519,87970.0,87958.0,0.0114]
[1767093864615,0.01136867,87961.0,87959.0,0.0114]
[1767093864763,0.06821253,87961.0,87959.0,0.0114]
[1767093864964,0.01136867,87961.0,87959.0,0.0114]
[1767093865179,0.06821186,87962.0,87959.0,0.0114]
[1767093866671,0.05684189,87964.0,87959.0,0.0114]
[1767093867052,0.01136854,87962.0,87959.0,0.0114]
[1767093867251,0.01136841,87963.0,87959.0,0.0114]
[1767093867508,0.01136854,87962.0,87959.0,0.0114]
[1767093868073,0.01136828,87964.0,87959.0,0.0114]
[1767093868510,0.01136854,87962.0,87959.0,0.0114]
[1767093868697,0.01136828,87964.0,87959.0,0.0114]
[1767093868698,0.01136841,87963.0,87959.0,0.0114]
[1767093869223,0.01136815,87965.0,87959.0,0.0114]
[1767093869432,0.01136828,87964.0,87959.0,0.0114]
[1767093869646,0.01136841,87963.0,87959.0,0.0114]
[1767093870421,0.01136854,87962.0,87959.0,0.0114]
[1767093870643,0.01136828,87964.0,87959.0,0.0114]
[1767093870808,0.01136841,87963.0,87959.0,0.0114]
[1767093871009,0.01136828,87964.0,87959.0,0.0114]
[1767093872228,0.01136815,87965.0,87959.0,0.0114]
[1767093872642,0.01136854,87962.0,87945.0,0.01137074]
[1767093872862,0.51263987,87960.0,87948.0,0.01137035]
[1767093873425,0.52400867,87960.0,87948.0,0.01137035]
[1767093873643,0.51263987,87960.0,87948.0,0.01137035]
[1767093873845,0.52400867,87960.0,87948.0,0.01137035]
[1767093875220,0.51209087,87960.0,87949.0,0.01137022]
[1767093875456,0.51263987,87960.0,87949.0,0.01137022]
[1767093875659,0.51263987,87960.0,87948.0,0.01137035]
[1767093875864,0.51263987,87960.0,87947.0,0.01137048]
[1767093876078,0.51263987,87960.0,87949.0,0.01137022]
[1767093876625,0.51263987,87960.0,87947.0,0.01137048]
[1767093876824,0.51263987,87960.0,87947.0,0.06822241]
[1767093877049,0.51263987,87960.0,87948.0,0.01137035]
[1767093877247,0.52400867,87960.0,87948.0,0.01137035]
[1767093878440,0.52400867,87960.0,87947.0,0.06822241]
[1767093878642,0.52400867,87960.0,87948.0,0.01137035]
[1767093879055,0.51263987,87960.0,87948.0,0.01137035]
[1767093879254,0.52400867,87960.0,87948.0,0.01137035]
[1767093879875,0.51263987,87960.0,87949.0,0.01137022]
[1767093880289,0.52400867,87960.0,87948.0,0.01137035]
[1767093880481,0.52400867,87960.0,87939.0,0.1461066]
[1767093880482,0.000549,87948.0,87939.0,0.1461066]
[1767093880642,0.01137087,87944.0,87940.0,0.0114]
[1767093881094,0.011371,87943.0,87940.0,0.0114]
[1767093881280,0.01137087,87944.0,87940.0,0.0114]
[1767093881484,0.01137074,87945.0,87939.0,0.0001466]
[1767093881893,0.01137061,87946.0,87939.0,0.0001466]
[1767093882078,0.06827659,87946.0,87939.0,6e-07]
[1767093882274,0.06822566,87944.0,87933.0,0.0114]
[1767093882511,0.06827659,87946.0,87933.0,0.0114]
[1767093882512,0.01137138,87940.0,87933.0,0.0114]
[1767093882825,0.000403,87933.0,87930.0,0.0001466]
[1767093882981,0.01137164,87938.0,87930.0,0.0001466]
[1767093883319,0.52401125,87940.0,87930.0,0.0001466]
[1767093883320,0.51263987,87940.0,87930.0,0.0001466]
[1767093883665,0.51263987,87940.0,87930.0,0.01151928]
[1767093883865,0.51263987,87940.0,87930.0,0.0001466]
[1767093884116,0.51263987,87940.0,87930.0,0.01151928]
[1767093884469,0.51263987,87940.0,87932.0,0.01137242]
[1767093884668,0.51263987,87942.0,87930.0,0.01151928]
[1767093884882,0.51263987,87940.0,87930.0,0.01151928]
[1767093885080,0.51263987,87940.0,87930.0,0.0001466]
[1767093885889,0.51263987,87940.0,87930.0,0.01151928]
[1767093887377,0.51263987,87940.0,87931.0,0.01137255]
[1767093888658,0.51263987,87940.0,87930.0,0.01151928]
[1767093889351,0.51263987,87940.0,87930.0,0.0001466]
[1767093891738,0.52401125,87940.0,87930.0,0.0001466]
[1767093892151,0.01137151,87939.0,87930.0,0.0001466]
[1767093892356,0.52401125,87940.0,87930.0,0.0001466]
[1767093892769,0.01137138,87940.0,87930.0,0.0001466]
[1767093892954,0.51263987,87940.0,87930.0,0.0001466]
[1767093893670,0.52401125,87940.0,87930.0,0.0001466]
[1767093896615,0.01137151,87939.0,87930.0,0.0001466]
[1767093897316,0.0113719,87936.0,87930.0,0.0001466]
[1767093897815,0.01137203,87935.0,87930.0,0.0001466]
[1767093897994,0.0113719,87936.0,87930.0,0.0001466]
[1767093898307,0.01137177,87937.0,87930.0,0.0001466]
[1767093898507,0.01137164,87938.0,87930.0,0.0001466]
[1767093898722,0.51263987,87940.0,87930.0,0.0001466]
[1767093898891,0.01137151,87939.0,87930.0,0.0001466]
[1767093899090,0.52401125,87940.0,87930.0,0.0001466]
[1767093900058,0.51263987,87940.0,87930.0,0.0001466]
[1767093901154,0.52403987,87940.0,87930.0,0.0001466]
[1767093902160,0.53541125,87940.0,87930.0,0.0001466]
[1767093904435,0.52403987,87940.0,87930.0,0.0001466]
[1767093905333,0.51263987,87940.0,87930.0,0.0001466]
[1767093905538,0.52403987,87940.0,87930.0,0.0001466]
[1767093906384,0.52403987,87940.0,87930.0,0.01151928]
[1767093906818,0.52403987,87940.0,87930.0,0.0001466]
[1767093909217,0.52403987,87940.0,87930.0,0.01151928]
[1767093909551,0.52403987,87940.0,87930.0,0.0001466]
[1767093909751,0.52403987,87940.0,87930.0,0.01151928]
[1767093910352,0.01066678,87939.0,87930.0,0.0001466]
[1767093910568,0.01066678,87938.0,87930.0,0.0001466]
[1767093910764,0.52403987,87940.0,87931.0,0.01137255]
[1767093910964,0.01066678,87939.0,87932.0,0.01137242]
[1767093911184,0.52403987,87940.0,87931.0,0.01137255]
[1767093911419,0.01066689,87939.0,87931.0,0.01137255]
[1767093911582,0.01066689,87938.0,87932.0,0.01137242]
[1767093911778,0.0114,87940.0,87938.0,0.00055]
[1767093912002,0.01067006,87939.0,87938.0,0.00055]
[1767093912201,0.01067006,87939.0,87931.0,0.01137255]
[1767093912512,0.01067006,87938.0,87931.0,0.01137255]
[1767093912708,0.01067006,87937.0,87931.0,0.01137255]
[1767093913030,0.0114,87943.0,87931.0,0.01137255]
[1767093913232,0.01067286,87942.0,87931.0,0.01137255]
[1767093913414,0.01067286,87941.0,87931.0,0.01137255]
[1767093913580,0.01067286,87940.0,87931.0,0.01137255]
[1767093914184,0.01067286,87940.0,87932.0,0.01137242]
[1767093914388,0.01067286,87940.0,87931.0,0.01137255]
[1767093915261,0.01067286,87940.0,87933.0,0.05686147]
[1767093915404,0.02277074,87945.0,87933.0,0.01137229]
[1767093915589,0.01137087,87944.0,87932.0,0.06823429]
[1767093915791,0.01142341,87946.0,87932.0,0.06823429]
[1767093916126,0.01137074,87945.0,87933.0,0.01137229]
[1767093916320,0.01137074,87945.0,87932.0,0.01137242]
[1767093916547,0.01137087,87944.0,87931.0,0.01137255]
[1767093916843,0.51263987,87941.0,87930.0,0.0001466]
[1767093917041,0.51263987,87941.0,87930.0,0.01151928]
[1767093917490,0.51263987,87941.0,87930.0,0.0001466]
[1767093917812,0.51263987,87941.0,87930.0,0.01151928]
[1767093918258,0.51263987,87941.0,87930.0,0.0001466]
[1767093918658,0.01137126,87941.0,87930.0,0.0001466]
[1767093919082,0.01137113,87942.0,87930.0,0.0001466]
[1767093919668,0.01137113,87942.0,87930.0,0.01151928]
[1767093919867,0.01137113,87942.0,87930.0,0.0001466]
[1767093920762,0.01137113,87942.0,87930.0,0.01151928]
[1767093922645,0.01137113,87942.0,87930.0,0.0001466]
[1767093922874,5.28e-05,87946.0,87931.0,0.06823531]
[1767093923007,5.28e-05,87946.0,87935.0,0.01137203]
[1767093923417,5.28e-05,87946.0,87932.0,0.06823412]
[1767093923644,0.01142341,87946.0,87934.0,0.01137216]
[1767093923818,5.28e-05,87946.0,87934.0,0.01137216]
[1767093924020,0.01142341,87946.0,87934.0,0.01137216]
[1767093924215,0.01137074,87945.0,87931.0,0.01137255]
[1767093924693,5.28e-05,87946.0,87930.0,0.0001466]
[1767093924886,0.06822765,87941.0,87930.0,0.0001466]
[1767093925023,0.01137126,87941.0,87930.0,0.0001466]
[1767093925426,0.01137113,87942.0,87930.0,0.0001466]
[1767093926319,0.01137138,87940.0,87930.0,0.0001466]
[1767093926508,0.01137126,87941.0,87930.0,0.0001466]
[1767093927390,0.01067184,87940.0,87930.0,0.0001466]
[1767093927550,0.01067184,87939.0,87930.0,0.0001466]
[1767093927757,0.01067184,87938.0,87930.0,0.0001466]
[1767093927980,0.01137113,87942.0,87930.0,0.0001466]
[1767093928186,0.0220431,87941.0,87930.0,0.0001466]
[1767093928362,0.01067184,87940.0,87930.0,0.01151928]
[1767093928695,0.01067184,87939.0,87930.0,0.01151928]
[1767093928856,0.01067184,87938.0,87930.0,0.0001466]
[1767093929058,0.01137126,87941.0,87930.0,0.0001466]
[1767093929369,0.01067184,87940.0,87930.0,0.0001466]
[1767093929594,0.01067184,87939.0,87930.0,0.0001466]
[1767093929795,0.01067184,87938.0,87930.0,0.0001466]
[1767093929998,0.01137126,87941.0,87930.0,0.0001466]
[1767093930209,0.01067185,87940.0,87930.0,0.0001466]
[1767093930407,0.01067185,87939.0,87930.0,0.01151928]
[1767093930630,0.01067185,87938.0,87930.0,0.0001466]
[1767093930946,0.05685476,87944.0,87930.0,0.01151928]
[1767093930947,0.01137113,87942.0,87930.0,0.01151928]
[1767093931164,0.01067186,87941.0,87930.0,0.01151928]
[1767093931369,0.01067186,87940.0,87930.0,0.01151928]
[1767093931510,0.01067186,87939.0,87930.0,0.0001466]
[1767093931709,0.01067186,87938.0,87930.0,0.01151928]
[1767093931933,0.01137113,87942.0,87930.0,0.0001466]
[1767093932136,0.01067189,87941.0,87930.0,0.01151928]
[1767093932334,0.01067189,87940.0,87930.0,0.01151928]
[1767093932535,0.01067189,87939.0,87930.0,0.01151928]
[1767093932737,0.01067189,87938.0,87930.0,0.01151928]
[1767093932938,0.01067189,87937.0,87930.0,0.01151928]
[1767093933246,0.011371,87943.0,87931.0,0.01137255]
[1767093933465,0.01067199,87942.0,87930.0,0.01151928]
[1767093933649,0.011371,87943.0,87930.0,0.01151928]
[1767093933650,0.01067199,87941.0,87932.0,0.01137242]
[1767093933835,0.01067199,87940.0,87931.0,0.01137255]
[1767093934034,0.01067199,87939.0,87931.0,0.01137255]
[1767093934214,0.01067199,87938.0,87932.0,0.01137242]
[1767093934424,0.01137087,87944.0,87931.0,0.01137255]
[1767093934616,0.02204304,87943.0,87931.0,0.01137255]
[1767093934927,0.01067204,87942.0,87931.0,0.01137255]
[1767093935133,0.01067204,87941.0,87931.0,0.01137255]
[1767093935342,0.01067204,87940.0,87931.0,0.01137255]
[1767093935697,0.01067204,87939.0,87931.0,0.01137255]
[1767093935901,0.01067204,87938.0,87931.0,0.01137255]
[1767093936029,0.01067204,87937.0,87931.0,0.01137255]
[1767093936234,0.011371,87943.0,87931.0,0.01137255]
[1767093936435,0.01067218,87942.0,87931.0,0.01137255]
[1767093936637,0.01067218,87941.0,87931.0,0.01137255]
[1767093936971,0.01067218,87940.0,87930.0,0.01151928]
[1767093937183,0.01067218,87939.0,87930.0,0.01151928]
[1767093937382,0.01067218,87938.0,87930.0,0.01151928]
[1767093937579,0.011371,87943.0,87930.0,0.01151928]
[1767093937580,0.01067218,87937.0,87930.0,0.01151928]
[1767093937745,0.01137113,87942.0,87930.0,0.01151928]
[1767093937947,0.01067226,87941.0,87930.0,0.01151928]
[1767093938151,0.01067226,87940.0,87930.0,0.01151928]
[1767093938332,0.01067226,87939.0,87930.0,0.01151928]
[1767093938531,0.01067226,87938.0,87930.0,0.01151928]
[1767093938758,0.01067226,87937.0,87930.0,0.01151928]
[1767093938959,0.01137113,87942.0,87930.0,0.01151928]
[1767093939164,0.01067234,87941.0,87930.0,0.0001466]
[1767093939378,0.01067234,87940.0,87930.0,0.01151928]
[1767093939581,0.01067234,87939.0,87930.0,0.01151928]
[1767093939914,0.01067234,87938.0,87930.0,0.01151928]
[1767093940123,0.01067234,87937.0,87930.0,0.01151928]
[1767093940292,0.01137087,87944.0,87930.0,0.0001466]
[1767093940474,0.01067252,87943.0,87930.0,0.0001466]
[1767093940814,0.01067252,87942.0,87930.0,0.0001466]
[1767093941115,0.01067252,87941.0,87930.0,0.0001466]
[1767093941318,0.01067252,87940.0,87930.0,0.0001466]
[1767093941611,0.01067252,87939.0,87930.0,0.0001466]
[1767093941812,0.01067252,87938.0,87930.0,0.0001466]
[1767093941973,0.01067252,87937.0,87930.0,0.0001466]
[1767093942170,0.01137126,87941.0,87930.0,0.0001466]
[1767093942374,0.01067265,87940.0,87930.0,0.0001466]
[1767093942574,0.01067265,87939.0,87930.0,0.0001466]
[1767093942770,0.01067265,87938.0,87930.0,0.0001466]
[1767093942996,0.01067265,87937.0,87930.0,0.0001466]
[1767093943312,0.01137126,87941.0,87930.0,0.0001466]
[1767093943613,0.01067272,87940.0,87930.0,0.0001466]
[1767093943840,0.01067272,87939.0,87930.0,0.0001466]
[1767093943959,0.01067272,87938.0,87930.0,0.0001466]
[1767093944166,0.01067272,87937.0,87930.0,0.0001466]
[1767093944467,0.01137138,87940.0,87930.0,0.0001466]
[1767093944676,0.01067285,87939.0,87930.0,0.0001466]
[1767093944891,0.01067285,87938.0,87930.0,0.0001466]
[1767093945112,0.01067285,87937.0,87930.0,0.0001466]
[1767093945331,0.01137138,87940.0,87930.0,0.0001466]
[1767093945538,0.010673,87939.0,87930.0,0.0001466]
[1767093945717,0.010673,87938.0,87930.0,0.0001466]
[1767093945871,0.010673,87937.0,87930.0,0.0001466]
[1767093946065,0.01137138,87940.0,87930.0,0.0001466]
[1767093946303,0.010673,87939.0,87930.0,0.0001466]
[1767093946474,0.010673,87938.0,87930.0,0.0001466]
[1767093946671,0.010673,87937.0,87930.0,0.0001466]
[1767093947044,0.01137138,87940.0,87930.0,0.0001466]
[1767093947178,0.01067319,87939.0,87930.0,0.0001466]
[1767093947380,0.01137138,87940.0,87930.0,0.0001466]
[1767093947381,0.01067319,87938.0,87930.0,0.0001466]
[1767093947580,0.01137138,87940.0,87930.0,0.0001466]
[1767093947581,0.01067319,87937.0,87930.0,0.0001466]
[1767093947813,0.01137177,87937.0,87930.0,6e-07]
[1767093948012,0.02204519,87936.0,87930.0,6e-07]
[1767093948219,0.01067329,87935.0,87930.0,6e-07]
[1767093948417,0.01137177,87937.0,87930.0,6e-07]
[1767093948593,0.01067227,87936.0,87930.0,6e-07]
[1767093948767,0.01067227,87935.0,87930.0,6e-07]
[1767093948987,0.0113719,87936.0,87930.0,6e-07]
[1767093949197,0.01067227,87935.0,87930.0,6e-07]
[1767093949425,0.01137177,87937.0,87930.0,6e-07]
[1767093949634,0.01067155,87936.0,87930.0,6e-07]
[1767093949858,0.01067155,87935.0,87930.0,6e-07]
[1767093950080,0.01137177,87937.0,87930.0,6e-07]
[1767093950279,0.01067155,87936.0,87930.0,6e-07]
[1767093950519,0.01067155,87935.0,87930.0,6e-07]
[1767093950721,0.01137177,87937.0,87930.0,6e-07]
[1767093950925,0.010671,87936.0,87930.0,6e-07]
[1767093951238,0.010671,87935.0,87930.0,6e-07]
[1767093951437,0.0113719,87936.0,87930.0,6e-07]
[1767093951646,0.01067056,87935.0,87930.0,6e-07]
[1767093951847,0.0113719,87936.0,87930.0,6e-07]
[1767093952089,0.01067056,87935.0,87930.0,6e-07]
[1767093952276,0.0113719,87936.0,87930.0,6e-07]
[1767093952565,0.01067017,87935.0,87930.0,6e-07]
[1767093952868,0.01137203,87935.0,87930.0,6e-07]